bitfinex/quotes_BTCUSD_20241202
["timestamp","ask_amount","ask_price","bid_price","bid_amount"]
[1733113847122,0.337,96554.0,96553.0,6e-07]
[1733113847334,0.335,96554.0,96553.0,6e-07]
[1733113847566,0.341,96554.0,96553.0,6e-07]
[1733113847803,0.343,96554.0,96553.0,6e-07]
[1733113848229,0.341,96554.0,96553.0,6e-07]
[1733113848487,0.42286091,96554.0,96553.0,6e-07]
[1733113848707,0.45861452,96554.0,96553.0,6e-07]
[1733113848921,0.345,96554.0,96553.0,6e-07]
[1733113849807,0.195,96554.0,96553.0,6e-07]
[1733113850023,0.1122918,96554.0,96553.0,6e-07]
[1733113850255,0.11,96554.0,96553.0,6e-07]
[1733113850502,0.01,96554.0,96553.0,0.10284581]
[1733113850964,0.1872915,96554.0,96553.0,0.10284581]
[1733113851427,0.1972915,96554.0,96553.0,0.10284581]
[1733113851900,0.1932915,96554.0,96553.0,0.10284581]
[1733113852149,0.1952915,96554.0,96553.0,0.10284581]
[1733113852601,0.1872915,96554.0,96553.0,0.10284581]
[1733113853033,0.1912915,96554.0,96553.0,0.10284581]
[1733113853243,0.1892915,96554.0,96553.0,0.10284581]
[1733113853487,0.1902915,96554.0,96553.0,0.10284581]
[1733113853928,0.188,96554.0,96553.0,6e-07]
[1733113854135,0.19029168,96554.0,96553.0,6e-07]
[1733113854359,0.18829168,96554.0,96553.0,6e-07]
[1733113854580,0.18929168,96554.0,96553.0,6e-07]
[1733113855083,0.18829168,96554.0,96553.0,6e-07]
[1733113855315,0.001,96554.0,96553.0,0.10284581]
[1733113855541,0.207135,96555.0,96553.0,0.10284581]
[1733113855761,0.207135,96555.0,96554.0,0.10284521]
[1733113857109,0.207135,96555.0,96554.0,0.10484521]
[1733113857575,0.1,96555.0,96554.0,0.11532979]
[1733113857792,0.307135,96555.0,96554.0,0.11532979]
[1733113858003,0.29092375,96555.0,96554.0,0.11532979]
[1733113859402,0.08378875,96555.0,96554.0,0.11532979]
[1733113859869,0.29092375,96555.0,96554.0,0.11532979]
[1733113860856,0.08378875,96555.0,96554.0,0.11532979]
[1733113863446,0.08378875,96555.0,96554.0,0.32246679]
[1733113863679,0.0017298,96556.0,96555.0,0.13456134]
[1733113863928,0.0017298,96556.0,96555.0,0.28691677]
[1733113864162,0.0017298,96556.0,96555.0,0.28600655]
[1733113866877,0.0017298,96556.0,96555.0,0.28900655]
[1733113867559,0.0017298,96556.0,96555.0,0.29000655]
[1733113868032,0.0017298,96556.0,96555.0,0.10584521]
[1733113868723,0.0017298,96556.0,96555.0,0.11184521]
[1733113869200,0.0017298,96556.0,96555.0,0.31898021]
[1733113870302,0.0017298,96556.0,96555.0,0.34198021]
[1733113870525,0.0017298,96556.0,96555.0,0.39108021]
[1733113870744,0.0017298,96556.0,96555.0,0.45448089]
[1733113871425,0.0017298,96556.0,96555.0,0.53118089]
[1733113874408,0.0017296,96572.0,96558.0,0.023]
[1733113874632,0.07906745,96561.0,96559.0,0.00090986]
[1733113874853,0.07906745,96561.0,96558.0,0.00091018]
[1733113875068,0.07906745,96567.0,96566.0,0.207111]
[1733113875298,0.07906745,96567.0,96560.0,0.00091005]
[1733113875542,0.07906745,96562.0,96561.0,0.02452949]
[1733113875761,0.07906745,96562.0,96561.0,0.02361947]
[1733113876180,0.07906745,96562.0,96561.0,0.12646468]
[1733113876393,0.07906745,96563.0,96562.0,0.20712]
[1733113876610,0.0017296,96572.0,96562.0,0.20712]
[1733113876611,0.0017296,96572.0,96562.0,0.37892336]
[1733113876860,0.07906745,96563.0,96562.0,0.06895815]
[1733113877076,0.0027296,96572.0,96568.0,0.207106]
[1733113877295,0.0017296,96572.0,96568.0,0.414212]
[1733113877540,0.0017296,96572.0,96568.0,0.207106]
[1733113877747,0.0017296,96572.0,96571.0,0.0455]
[1733113877989,0.0017296,96572.0,96571.0,0.0685]
[1733113878216,0.085,96603.0,96586.0,0.207069]
[1733113878437,0.01362602,96613.0,96586.0,0.283869]
[1733113878658,0.207031,96604.0,96586.0,0.43580841]
[1733113878868,0.68977519,96600.0,96586.0,0.43580841]
[1733113879095,0.07906745,96593.0,96586.0,0.43580841]
[1733113879598,0.00232404,96587.0,96586.0,0.45880841]
[1733113880475,0.00232404,96587.0,96586.0,0.46780841]
[1733113880709,0.00232404,96587.0,96586.0,0.46880841]
[1733113880959,0.48273419,96600.0,96586.0,0.69087741]
[1733113881198,0.2198186,96631.0,96586.0,0.69087741]
[1733113881199,6e-05,96614.0,96600.0,0.16095787]
[1733113881437,6e-05,96614.0,96608.0,0.10284521]
[1733113881671,0.07906745,96613.0,96609.0,0.01119226]
[1733113881915,0.07906745,96613.0,96610.0,0.10284521]
[1733113882374,0.07906745,96613.0,96612.0,0.10284521]
[1733113882588,0.07906745,96613.0,96612.0,0.12584521]
[1733113882815,0.07906745,96613.0,96612.0,0.12675296]
[1733113883042,0.07906745,96613.0,96612.0,0.18852226]
[1733113884233,0.08206745,96613.0,96612.0,0.18852226]
[1733113884509,0.003,96613.0,96612.0,0.18852226]
[1733113884728,0.07906745,96613.0,96612.0,0.18942973]
[1733113884948,0.00023841,96614.0,96613.0,0.230011]
[1733113885180,0.00023841,96614.0,96613.0,0.42457766]
[1733113886301,0.00023841,96614.0,96613.0,0.41957766]
[1733113886543,0.00023841,96614.0,96613.0,0.56957766]
[1733113887007,0.00123841,96614.0,96613.0,0.56957766]
[1733113887670,0.00023841,96614.0,96613.0,0.68671021]
[1733113887904,0.00023841,96614.0,96613.0,0.69171021]
[1733113888369,0.00023841,96614.0,96613.0,0.67077766]
[1733113888590,0.00023841,96614.0,96613.0,0.69171021]
[1733113889472,0.00023841,96614.0,96613.0,0.67077766]
[1733113889930,0.00023841,96614.0,96613.0,0.65577766]
[1733113889932,0.00023841,96614.0,96613.0,0.63777766]
[1733113890398,0.00023841,96614.0,96613.0,0.43076666]
[1733113890649,0.00023841,96614.0,96613.0,0.19956666]
[1733113890893,0.00023841,96614.0,96613.0,0.10784521]
[1733113891108,0.00023841,96614.0,96613.0,0.10875286]
[1733113891782,0.07906745,96628.0,96613.0,0.10875286]
[1733113892030,0.07906745,96628.0,96626.0,0.10284521]
[1733113892283,0.07906745,96628.0,96614.0,0.00090715]
[1733113892284,0.07906745,96628.0,96627.0,0.10375236]
[1733113892517,0.03500118,96628.0,96627.0,0.11312973]
[1733113892996,0.24198018,96628.0,96627.0,0.11312973]
[1733113893461,0.03700118,96628.0,96627.0,0.11312973]
[1733113894102,0.03500118,96628.0,96627.0,0.11312973]
[1733113894315,0.03700118,96628.0,96627.0,0.11312973]
[1733113894741,0.0415346,96628.0,96627.0,0.11312973]
[1733113895219,0.0415346,96628.0,96627.0,0.10284521]
[1733113898666,0.0876346,96628.0,96627.0,0.10284521]
[1733113904109,0.089363,96628.0,96627.0,0.10284521]
[1733113906241,0.043263,96628.0,96627.0,0.10284521]
[1733113910158,0.03500118,96614.0,96613.0,0.00104261]
[1733113910381,0.03500118,96614.0,96613.0,0.10388782]
[1733113910598,0.12216119,96614.0,96613.0,0.10388782]
[1733113911027,0.11759126,96614.0,96613.0,0.10388782]
[1733113911480,0.11759126,96614.0,96613.0,0.10488782]
[1733113912820,0.12216067,96614.0,96613.0,0.10388782]
[1733113913048,0.11759126,96614.0,96613.0,0.10388782]
[1733113913317,0.12214928,96614.0,96613.0,0.1142766]
[1733113913530,0.12214928,96614.0,96613.0,0.10688782]
[1733113913760,0.11759126,96614.0,96613.0,0.10388782]
[1733113915066,0.03500118,96614.0,96613.0,0.10388782]
[1733113915500,0.0045588,96614.0,96613.0,0.10388782]
[1733113915719,0.0045588,96614.0,96613.0,0.17967835]
[1733113915942,0.03672958,96628.0,96613.0,0.17967835]
[1733113916153,0.206981,96627.0,96622.0,0.10284521]
[1733113916623,0.00344001,96626.0,96622.0,0.10284521]
[1733113916845,0.206985,96625.0,96622.0,0.10284521]
[1733113917057,0.206985,96625.0,96622.0,0.11312973]
[1733113917279,0.206985,96625.0,96623.0,0.02061441]
[1733113917502,0.206985,96625.0,96624.0,0.10284521]
[1733113917711,0.32698618,96625.0,96624.0,0.10284521]
[1733113917919,0.32798618,96625.0,96624.0,0.10284521]
[1733113918384,0.33142397,96625.0,96624.0,0.10284521]
[1733113919069,0.32798618,96625.0,96624.0,0.10284521]
[1733113919286,0.32698618,96625.0,96624.0,0.10284521]
[1733113919505,0.32798618,96625.0,96624.0,0.10284521]
[1733113919925,0.32698618,96625.0,96624.0,0.10284521]
[1733113920142,0.32898618,96625.0,96624.0,0.10284521]
[1733113920355,0.32898618,96625.0,96624.0,0.11312973]
[1733113920590,0.2124274,96625.0,96624.0,0.11312973]
[1733113920808,0.001,96625.0,96624.0,0.13612973]
[1733113921032,0.002,96625.0,96624.0,0.13612973]
[1733113923028,0.002,96625.0,96624.0,0.34311673]
[1733113923261,0.002,96625.0,96624.0,0.13612973]
[1733113923889,0.002,96625.0,96624.0,0.34311673]
[1733113924107,0.002,96625.0,96624.0,0.13612973]
[1733113924569,0.002,96625.0,96624.0,0.14388122]
[1733113925208,0.002,96625.0,96624.0,0.14288122]
[1733113925426,0.002,96625.0,96624.0,0.14378851]
[1733113926371,0.002,96625.0,96624.0,0.13603702]
[1733113927044,0.002,96625.0,96624.0,0.13603671]
[1733113927936,0.002,96625.0,96624.0,0.13690091]
[1733113928632,0.002,96625.0,96624.0,0.14945323]
[1733113928845,0.002,96625.0,96624.0,0.19645966]
[1733113929065,0.002,96625.0,96624.0,0.29305966]
[1733113929306,0.002,96625.0,96624.0,0.29215323]
[1733113929966,0.0017284,96628.0,96627.0,0.03552535]
[1733113930209,0.0017284,96628.0,96627.0,0.22527835]
[1733113930413,0.0017284,96628.0,96627.0,0.22437193]
[1733113932429,0.0017284,96628.0,96627.0,0.23337193]
[1733113932643,0.0017284,96628.0,96627.0,0.25427266]
[1733113933116,0.0017284,96628.0,96627.0,0.25927266]
[1733113933532,0.0017284,96628.0,96627.0,0.47427148]
[1733113933759,0.0017284,96628.0,96627.0,0.54997148]
[1733113933967,0.0017284,96628.0,96627.0,0.87631179]
[1733113934199,0.0017284,96628.0,96627.0,0.59767148]
[1733113934418,5.0826,96666.0,96647.0,0.173]
[1733113934419,5.0,96666.0,96647.0,0.173]
[1733113934668,5.0,96666.0,96652.0,0.10284521]
[1733113934896,5.0,96666.0,96652.0,0.12584521]
[1733113935746,0.00190814,96653.0,96652.0,0.12584521]
[1733113935990,0.00190814,96653.0,96652.0,0.13384521]
[1733113936423,0.00190814,96653.0,96652.0,0.12584521]
[1733113936655,0.00190814,96653.0,96652.0,0.16927495]
[1733113936877,0.00190814,96653.0,96652.0,0.16227495]
[1733113937336,0.00190814,96653.0,96652.0,0.17327495]
[1733113937837,0.00190814,96653.0,96652.0,0.17027495]
[1733113938034,0.00190814,96653.0,96652.0,0.17327495]
[1733113938466,0.00190814,96653.0,96652.0,0.12884521]
[1733113938901,0.00190814,96653.0,96652.0,0.13684521]
[1733113939110,0.00190814,96653.0,96652.0,0.12884521]
[1733113939328,0.00190814,96653.0,96652.0,0.12584521]
[1733113939548,0.00190814,96653.0,96652.0,0.13384521]
[1733113939812,0.00190814,96653.0,96652.0,0.1525802]
[1733113940234,0.00190814,96653.0,96652.0,0.1485802]
[1733113940460,0.00190814,96653.0,96652.0,0.1525802]
[1733113940894,0.00190814,96653.0,96652.0,0.1515802]
[1733113945126,0.00190814,96653.0,96652.0,0.16310555]
[1733113945335,0.00190814,96653.0,96652.0,0.16401092]
[1733113945550,0.00190814,96653.0,96652.0,1.07900974]
[1733113945761,0.00190814,96653.0,96652.0,1.07810437]
[1733113946434,0.00190814,96653.0,96652.0,1.01310555]
[1733113946653,0.00190814,96653.0,96652.0,1.07810437]
[1733113947105,0.00190814,96653.0,96652.0,1.01310555]
[1733113947328,0.00190814,96653.0,96652.0,1.07810437]
[1733113947595,0.00190814,96653.0,96652.0,1.0015802]
[1733113948878,0.00190814,96653.0,96652.0,1.0005802]
[1733113949122,0.00190814,96653.0,96652.0,1.01210555]
[1733113950007,0.00190814,96653.0,96652.0,0.37710437]
[1733113950466,4.97575549,96666.0,96665.0,0.023]
[1733113950677,4.97575549,96666.0,96665.0,0.12584521]
[1733113950888,4.97575549,96666.0,96665.0,0.13842973]
[1733113953009,4.97575549,96666.0,96665.0,0.14742973]
[1733113953240,4.96354247,96666.0,96665.0,0.38595508]
[1733113953440,4.91823816,96666.0,96665.0,0.38595508]
[1733113954112,4.91823816,96666.0,96665.0,0.38780624]
[1733113954330,4.91823816,96666.0,96665.0,0.31580624]
[1733113954558,4.91823816,96666.0,96665.0,0.32733159]
[1733113954767,4.91823816,96666.0,96665.0,0.29280624]
[1733113954977,4.88862984,96666.0,96665.0,0.41999675]
[1733113955194,4.88862984,96666.0,96665.0,0.42099675]
[1733113955652,4.88862984,96666.0,96665.0,0.41499675]
[1733113955884,4.88862984,96666.0,96665.0,0.41599675]
[1733113956107,4.88862984,96666.0,96665.0,0.43999675]
[1733113956317,4.88862984,96666.0,96665.0,0.43899675]
[1733113956763,4.87828476,96666.0,96665.0,0.43899675]
[1733113957008,4.86401569,96666.0,96665.0,0.43899675]
[1733113957428,4.86401569,96666.0,96665.0,0.43799675]
[1733113958318,4.86401569,96666.0,96665.0,0.43899675]
[1733113959169,4.86401569,96666.0,96665.0,0.43799675]
[1733113959401,4.13977528,96666.0,96665.0,0.43799675]
[1733113959827,4.13977528,96666.0,96665.0,0.43899675]
[1733113960041,4.13977528,96666.0,96665.0,0.2793714]
[1733113960468,4.13972219,96666.0,96665.0,0.9793714]
[1733113960704,4.13972219,96666.0,96665.0,0.99089675]
[1733113961191,4.13972219,96666.0,96665.0,1.01389675]
[1733113961403,4.13972219,96666.0,96665.0,1.0023714]
[1733113961831,4.14772219,96666.0,96665.0,1.0033714]
[1733113962062,4.14772219,96666.0,96665.0,0.3033714]
[1733113962699,4.13972219,96666.0,96665.0,0.3023714]
[1733113963136,4.14772219,96666.0,96665.0,0.3033714]
[1733113963562,4.14772219,96666.0,96665.0,0.3023714]
[1733113963771,4.15272219,96666.0,96665.0,0.3033714]
[1733113963999,4.15272219,96666.0,96665.0,0.3050992]
[1733113964214,4.14772219,96666.0,96665.0,0.3040992]
[1733113964422,4.14772219,96666.0,96665.0,0.3030992]
[1733113964423,4.13972219,96666.0,96665.0,0.3030992]
[1733113964643,4.14872219,96666.0,96665.0,0.3050992]
[1733113964865,4.15672219,96666.0,96665.0,0.3050992]
[1733113966463,4.23852219,96666.0,96665.0,0.3050992]
[1733113966673,4.23852219,96666.0,96665.0,0.1550992]
[1733113967615,4.23852219,96666.0,96665.0,0.14172269]
[1733113967836,4.32699684,96666.0,96665.0,0.11872269]
[1733113968081,4.37469684,96666.0,96665.0,0.10613817]
[1733113968330,4.40969802,96666.0,96665.0,0.10613817]
[1733113968583,4.40069802,96666.0,96665.0,0.0027278]
[1733113969064,4.40592045,96666.0,96665.0,0.10757301]
[1733113969315,4.39369802,96666.0,96665.0,0.11557301]
[1733113970457,4.39369802,96666.0,96665.0,0.0127278]
[1733113976027,4.39369802,96666.0,96652.0,0.00190634]
[1733113976028,0.45700083,96653.0,96652.0,0.00190634]
[1733113977621,0.47793698,96653.0,96652.0,0.00190634]
[1733113978297,0.47893698,96653.0,96652.0,0.00790634]
[1733113978519,0.37385965,96625.0,96624.0,0.0008642]
[1733113978756,0.37385965,96625.0,96624.0,0.10370941]
[1733113978984,0.37385965,96625.0,96624.0,0.11408035]
[1733113979950,0.287385,96625.0,96624.0,0.12308035]
[1733113980168,0.208985,96625.0,96624.0,0.12308035]
[1733113980372,0.002,96625.0,96624.0,0.12308035]
[1733113980618,0.002,96625.0,96624.0,0.14608035]
[1733113985448,0.002,96625.0,96624.0,0.14108035]
[1733113986363,0.002,96625.0,96624.0,0.14198722]
[1733113986624,0.002,96625.0,96624.0,0.3569859]
[1733113986841,0.002,96625.0,96624.0,0.36760452]
[1733113987547,0.001,96625.0,96624.0,0.36060452]
[1733113988118,0.001,96625.0,96624.0,0.35860452]
[1733113988356,0.00017821,96653.0,96638.0,0.173]
[1733113988612,0.00017821,96653.0,96652.0,0.12584521]
[1733113988825,0.00017821,96653.0,96652.0,0.10284521]
[1733113989063,0.09094193,96653.0,96652.0,0.10284521]
[1733113989541,0.08865286,96653.0,96652.0,0.10284521]
[1733113990488,0.08865286,96653.0,96652.0,0.003]
[1733113990489,0.25394324,96653.0,96652.0,0.003]
[1733113990738,0.0786,96626.0,96624.0,0.01209894]
[1733113990953,0.0786,96626.0,96625.0,0.10284521]
[1733113991382,0.206974,96631.0,96625.0,0.10284521]
[1733113992494,0.08847465,96633.0,96626.0,0.023]
[1733113992753,0.206979,96628.0,96627.0,0.10284521]
[1733113993050,0.206979,96628.0,96627.0,0.13930253]
[1733113993284,0.001,96631.0,96628.0,0.023]
[1733113993509,0.08847465,96633.0,96630.0,0.023]
[1733113993722,0.20697,96632.0,96631.0,0.10284521]
[1733113993942,0.20697,96632.0,96631.0,0.12584521]
[1733113994177,0.20697,96632.0,96631.0,0.14054826]
[1733113994628,0.08947465,96633.0,96632.0,0.023]
[1733113994843,0.08947465,96633.0,96632.0,0.12584521]
[1733113995062,0.08847465,96633.0,96632.0,0.12584521]
[1733113995758,0.08847465,96640.0,96632.0,0.12584521]
[1733113996002,0.08847465,96640.0,96633.0,0.11720004]
[1733113996224,0.08847465,96640.0,96634.0,0.023]
[1733113996436,0.206955,96639.0,96636.0,0.023]
[1733113996659,0.206955,96639.0,96638.0,0.023]
[1733113996906,0.29771911,96639.0,96638.0,0.10284521]
[1733113997122,0.29542965,96639.0,96638.0,0.10284521]
[1733113997777,0.08847465,96639.0,96638.0,0.10284521]
[1733113998253,0.09076421,96639.0,96638.0,0.10284521]
[1733113998500,0.08847465,96639.0,96638.0,0.10284521]
[1733113998721,0.08847465,96639.0,96638.0,0.11362973]
[1733113998941,0.207954,96640.0,96638.0,0.11362973]
[1733113998942,0.08847465,96640.0,96639.0,0.023]
[1733113999161,0.08847465,96640.0,96639.0,0.12584521]
[1733113999636,0.29542765,96640.0,96639.0,0.12584521]
[1733113999903,0.29542765,96640.0,96639.0,0.14030818]
[1733114000124,0.08847465,96640.0,96639.0,0.14030818]
[1733114000339,0.206951,96641.0,96639.0,0.14030818]
[1733114000567,0.206951,96641.0,96640.0,0.12584521]
[1733114000788,0.206951,96641.0,96640.0,0.13987603]
[1733114001249,0.08847465,96642.0,96641.0,0.023]
[1733114001461,0.08847465,96642.0,96641.0,0.12584521]
[1733114001720,0.00017821,96653.0,96649.0,0.413867]
[1733114001949,0.00017821,96653.0,96651.0,0.12584521]
[1733114002164,0.00017821,96653.0,96651.0,0.39004246]
[1733114002384,0.00017821,96653.0,96651.0,0.43653699]
[1733114002619,0.00017821,96653.0,96651.0,0.58653699]
[1733114002844,0.08847465,96632.0,96625.0,0.15]
[1733114003156,0.206982,96627.0,96626.0,0.10284521]
[1733114003316,0.29545665,96627.0,96626.0,0.10284521]
[1733114003540,0.29545665,96627.0,96626.0,0.11330253]
[1733114003759,0.08847465,96627.0,96626.0,0.11330253]
[1733114003993,0.08847465,96632.0,96626.0,0.11330253]
[1733114004439,0.08847465,96641.0,96631.0,0.10284521]
[1733114004657,0.08847465,96641.0,96633.0,0.023]
[1733114004888,0.08847465,96641.0,96635.0,0.023]
[1733114005116,0.29542665,96641.0,96637.0,0.023]
[1733114005333,0.50237865,96641.0,96639.0,0.023]
[1733114005574,0.413914,96638.0,96635.0,0.023]
[1733114005829,0.206962,96636.0,96635.0,0.023]
[1733114006050,0.206962,96636.0,96626.0,0.003]
[1733114006051,0.08847465,96639.0,96627.0,0.023]
[1733114006265,0.08847465,96639.0,96629.0,0.023]
[1733114006485,0.20696,96637.0,96631.0,0.023]
[1733114006701,0.29542765,96641.0,96633.0,0.023]
[1733114006914,0.29542765,96641.0,96634.0,0.10284521]
[1733114007147,0.206962,96636.0,96635.0,0.0356752]
[1733114007363,0.29543665,96636.0,96635.0,0.13852041]
[1733114007578,0.29543665,96636.0,96635.0,0.11552041]
[1733114007804,0.33043783,96636.0,96635.0,0.11552041]
[1733114009217,0.33043783,96636.0,96635.0,0.12752041]
[1733114009436,0.33143783,96636.0,96635.0,0.12752041]
[1733114009654,0.33043783,96636.0,96635.0,0.11952041]
[1733114009916,0.33143783,96636.0,96635.0,0.12552041]
[1733114010577,0.33143783,96636.0,96635.0,0.12152041]
[1733114011009,0.33143783,96636.0,96635.0,0.12352041]
[1733114011226,0.08947465,96636.0,96635.0,0.12352041]
[1733114011465,0.33143783,96636.0,96635.0,0.12352041]
[1733114011917,0.207962,96636.0,96635.0,0.12352041]
[1733114012137,0.001,96636.0,96635.0,0.12352041]
[1733114021304,0.001,96636.0,96635.0,0.14652041]
[1733114022644,0.001,96636.0,96635.0,0.29652041]
[1733114026268,0.001,96636.0,96635.0,0.27352041]
[1733114026692,0.001,96636.0,96635.0,0.48048441]
[1733114026915,0.001,96636.0,96635.0,0.98262686]
[1733114027144,0.02113012,96670.0,96651.0,0.06499882]
[1733114027352,0.09020445,96669.0,96651.0,0.55427391]
[1733114027882,0.09020445,96669.0,96651.0,0.83284758]
[1733114028086,0.0017298,96669.0,96651.0,0.63167391]
[1733114028332,0.0017298,96669.0,96651.0,0.56667509]
[1733114028570,0.0017298,96669.0,96651.0,0.63167391]
[1733114028781,0.0027294,96652.0,96651.0,0.63667391]
[1733114029684,0.0037294,96652.0,96651.0,0.70369926]
[1733114030585,0.0017294,96652.0,96651.0,0.70323196]
[1733114030837,0.0137294,96652.0,96651.0,0.70523196]
[1733114031074,0.0137294,96652.0,96651.0,1.11670349]
[1733114031295,0.0017298,96669.0,96652.0,0.24952417]
[1733114031619,0.0017298,96669.0,96652.0,0.40641136]
[1733114032444,0.0017298,96669.0,96652.0,0.48471136]
[1733114033356,0.00717821,96653.0,96652.0,0.48571136]
[1733114035440,0.00717821,96653.0,96652.0,0.76361347]
[1733114035665,0.00890821,96653.0,96652.0,0.48571136]
[1733114036363,0.00890821,96653.0,96652.0,0.76345107]
[1733114037040,0.00890821,96653.0,96652.0,0.48571136]
[1733114037267,0.00890821,96653.0,96652.0,0.37288601]
[1733114037502,0.00890821,96653.0,96652.0,0.38441136]
[1733114038462,0.00890821,96653.0,96652.0,0.37288601]
[1733114038685,0.00890821,96653.0,96652.0,0.40741136]
[1733114039360,0.00890821,96653.0,96652.0,0.39588601]
[1733114040297,0.00890821,96653.0,96652.0,0.44348601]
[1733114041447,0.00890821,96653.0,96652.0,0.39588601]
[1733114043330,0.00890821,96653.0,96652.0,0.51858601]
[1733114044499,0.00890821,96653.0,96652.0,0.79615994]
[1733114045436,0.00890821,96653.0,96652.0,0.51858601]
[1733114045864,0.00890821,96653.0,96652.0,0.47348601]
[1733114046324,0.00890821,96653.0,96652.0,0.75105994]
[1733114046555,0.00890821,96653.0,96652.0,0.47348601]
[1733114049277,0.00890821,96653.0,96652.0,0.75105994]
[1733114050413,0.00890821,96653.0,96652.0,0.47348601]
[1733114050876,4.14058609,96666.0,96665.0,0.3799]
[1733114051083,4.14058609,96666.0,96665.0,0.49542041]
[1733114052175,4.14045086,96666.0,96665.0,0.50694576]
[1733114052412,4.14545086,96666.0,96665.0,0.50794576]
[1733114052637,4.14545086,96666.0,96665.0,0.49642041]
[1733114052853,4.14545086,96666.0,96665.0,0.50794576]
[1733114053314,4.14545086,96666.0,96665.0,0.49642041]
[1733114053547,4.14545086,96666.0,96665.0,0.49742041]
[1733114053809,4.14545086,96666.0,96665.0,0.50894576]
[1733114054249,4.14545086,96666.0,96665.0,0.49742041]
[1733114054749,4.14545086,96666.0,96665.0,0.50894576]
[1733114055425,4.14545086,96666.0,96665.0,0.49742041]
[1733114055634,4.14545086,96666.0,96665.0,0.50894576]
[1733114055864,4.14545086,96666.0,96665.0,0.52219112]
[1733114056316,4.14545086,96666.0,96665.0,0.51066577]
[1733114058772,4.14545086,96666.0,96665.0,0.50862224]
[1733114059425,4.14545086,96666.0,96665.0,0.28076577]
[1733114060126,4.14545086,96666.0,96665.0,0.13076577]
[1733114060368,4.19065086,96666.0,96665.0,0.13076577]
[1733114061244,4.39754786,96666.0,96665.0,0.11652041]
[1733114061478,4.56532251,96666.0,96665.0,0.11652041]
[1733114061723,4.56532251,96666.0,96665.0,0.27152041]
[1733114061956,4.35842551,96666.0,96665.0,0.27152041]
[1733114062453,4.26995086,96666.0,96665.0,0.27152041]
[1733114062922,4.26495086,96666.0,96665.0,0.27052041]
[1733114063135,4.26595086,96666.0,96665.0,0.27452041]
[1733114063355,4.26595086,96666.0,96665.0,0.11552041]
[1733114063356,4.35442551,96666.0,96665.0,0.11552041]
[1733114063630,4.35442551,96666.0,96665.0,0.12052041]
[1733114063841,4.35742551,96666.0,96665.0,0.12052041]
[1733114064052,4.35342551,96666.0,96665.0,0.11552041]
[1733114064288,4.35542551,96666.0,96665.0,0.11552041]
[1733114064520,4.35642551,96666.0,96665.0,0.11552041]
[1733114064774,4.35442551,96666.0,96665.0,0.11552041]
[1733114065013,4.35342551,96666.0,96665.0,0.11552041]
[1733114066140,4.35442551,96666.0,96665.0,0.12452041]
[1733114067054,4.35442551,96666.0,96665.0,0.12952041]
[1733114073053,4.35442551,96666.0,96665.0,0.13124961]
[1733114075975,4.22992551,96666.0,96665.0,0.13124961]
[1733114076193,4.14145086,96666.0,96665.0,0.13124961]
[1733114078464,4.14145086,96666.0,96665.0,0.29458894]
[1733114078675,4.14145086,96666.0,96665.0,0.37568894]
[1733114079307,4.14045086,96666.0,96665.0,0.36168894]
[1733114079733,4.15545086,96666.0,96665.0,0.36368894]
[1733114079943,4.15545086,96666.0,96665.0,0.38568894]
[1733114080171,4.16245086,96666.0,96665.0,0.38668894]
[1733114080821,4.15445086,96666.0,96665.0,0.38568894]
[1733114081030,4.16245086,96666.0,96665.0,0.38668894]
[1733114081244,4.13916845,96666.0,96665.0,0.38668894]
[1733114081472,4.13916845,96666.0,96665.0,0.39821429]
[1733114081705,4.13916845,96666.0,96665.0,0.51071311]
[1733114081948,4.13916845,96666.0,96665.0,0.85707919]
[1733114082181,4.13916845,96666.0,96665.0,0.51071311]
[1733114083090,4.0903619,96666.0,96665.0,0.51071311]
[1733114083323,4.0613619,96666.0,96665.0,0.51071311]
[1733114083529,4.0533619,96666.0,96665.0,0.50971311]
[1733114083729,4.0393619,96666.0,96665.0,0.50871311]
[1733114083954,2.90396507,96666.0,96665.0,1.23757533]
[1733114084163,2.68027713,96666.0,96665.0,0.83908491]
[1733114084435,2.65338184,96666.0,96665.0,0.83808491]
[1733114084645,2.61766032,96666.0,96665.0,0.83808491]
[1733114084899,2.40349009,96666.0,96665.0,0.83808491]
[1733114085140,2.3353672,96666.0,96665.0,0.83708491]
[1733114085645,2.3146772,96666.0,96665.0,0.83708491]
[1733114085867,2.1929172,96666.0,96665.0,1.53708491]
[1733114086091,2.1755772,96666.0,96665.0,1.53708491]
[1733114086319,2.1755772,96666.0,96665.0,1.59539375]
[1733114086320,2.1775772,96666.0,96665.0,1.59539375]
[1733114086549,2.1775772,96666.0,96665.0,1.18478191]
[1733114086769,2.1775772,96666.0,96665.0,0.48478191]
[1733114086770,2.1755772,96666.0,96665.0,0.48478191]
[1733114087228,2.1775772,96666.0,96665.0,0.48478191]
[1733114088597,2.1775772,96666.0,96665.0,0.37493791]
[1733114088816,2.1775772,96666.0,96665.0,0.89008891]
[1733114089034,2.1775772,96666.0,96665.0,0.37493791]
[1733114089313,2.1775772,96666.0,96665.0,0.36743791]
[1733114089767,2.1775772,96666.0,96665.0,0.64541267]
[1733114089989,2.1775772,96666.0,96665.0,0.36743791]
[1733114091118,2.1725772,96666.0,96665.0,0.36743791]
[1733114091343,2.1725772,96666.0,96665.0,0.30243909]
[1733114091565,2.13115698,96666.0,96665.0,0.36743791]
[1733114092976,2.13115698,96666.0,96665.0,1.16671091]
[1733114093192,2.13115698,96666.0,96665.0,1.66503791]
[1733114093455,2.13115698,96666.0,96665.0,1.34553791]
[1733114093680,2.11519826,96666.0,96665.0,1.16670091]
[1733114094131,2.11519826,96666.0,96665.0,1.86670091]
[1733114095982,2.11519826,96666.0,96665.0,2.27699137]
[1733114096635,2.11519826,96666.0,96665.0,2.20190637]
[1733114096850,2.01174826,96666.0,96665.0,1.79161591]
[1733114097091,2.01174826,96666.0,96665.0,2.20190637]
[1733114097318,2.01174826,96666.0,96665.0,1.79161591]
[1733114097536,1.47214826,96666.0,96665.0,1.79161591]
[1733114098201,1.43076826,96666.0,96665.0,1.79161591]
[1733114098413,1.35140735,96666.0,96665.0,1.79161591]
[1733114098633,1.34726964,96666.0,96665.0,1.79161591]
[1733114098843,1.28519964,96666.0,96665.0,1.79161591]
[1733114099056,1.24381964,96666.0,96665.0,1.79161591]
[1733114099511,1.24389954,96666.0,96665.0,1.79161591]
[1733114099720,1.15613954,96666.0,96665.0,1.79161591]
[1733114099948,1.13544954,96666.0,96665.0,1.79161591]
[1733114100830,1.07337954,96666.0,96665.0,1.79161591]
[1733114101048,1.01996024,96666.0,96665.0,1.79161591]
[1733114101268,1.00832904,96666.0,96665.0,1.79161591]
[1733114101937,0.84742929,96666.0,96665.0,1.79161591]
[1733114102211,0.79926952,96666.0,96665.0,1.79161591]
[1733114102433,0.74897654,96666.0,96665.0,1.79161591]
[1733114102678,0.62890654,96666.0,96665.0,1.79161591]
[1733114102896,0.58752654,96666.0,96665.0,1.79161591]